[Event "Titled Tuesday Blitz June 8 2021"]
[White "Vidit, Santosh Gujrathi"]
[Black "Svane, Rasmus"]
[WhiteFideId "5029465"]
[BlackFideId "4657101"]
[WhiteElo "2735"]
[BlackElo "2669"]
[Result "1-0"]
[Round "10"]
[TimeControl "180+1"]
[Date "2021.06.08"]
[WhiteClock "0:00:12"]
[BlackClock "0:00:01"]

1. d4 {[%clk 0:02:59]}  Nf6 {[%clk 0:03:00]} 2. c4 {[%clk 0:02:58]}  e6 {[%clk 0:03:00]} 3. Nc3 {[%clk 0:02:57]}  Bb4 {[%clk 0:02:59]} 4. e3 {[%clk 0:02:57]}  O-O {[%clk 0:02:59]} 5. Bd2 {[%clk 0:02:57]}  b6 {[%clk 0:02:56]} 6. Nf3 {[%clk 0:02:53]}  Bb7 {[%clk 0:02:56]} 7. Bd3 {[%clk 0:02:54]}  c5 {[%clk 0:02:56]} 8. a3 {[%clk 0:02:40]}  Bxc3 {[%clk 0:02:57]} 9. Bxc3 {[%clk 0:02:41]}  cxd4 {[%clk 0:02:57]} 10. exd4 {[%clk 0:02:36]}  d5 {[%clk 0:02:57]} 11. b3 {[%clk 0:02:36]}  a5 {[%clk 0:02:57]} 12. a4 {[%clk 0:02:26]}  Nc6 {[%clk 0:02:52]} 13. O-O {[%clk 0:02:25]}  Nb4 {[%clk 0:02:49]} 14. Be2 {[%clk 0:02:23]}  Rc8 {[%clk 0:02:29]} 15. Bb2 {[%clk 0:02:22]}  dxc4 {[%clk 0:02:28]} 16. Bxc4 {[%clk 0:02:21]}  Nfd5 {[%clk 0:02:24]} 17. Qd2 {[%clk 0:02:03]}  Qf6 {[%clk 0:02:24]} 18. Ne5 {[%clk 0:02:03]}  Rfd8 {[%clk 0:02:16]} 19. f4 {[%clk 0:02:00]}  Qf5 {[%clk 0:01:49]} 20. Rf2 {[%clk 0:01:44]}  Nf6 {[%clk 0:01:46]} 21. Qe2 {[%clk 0:01:34]}  h5 {[%clk 0:01:37]} 22. Re1 {[%clk 0:01:25]}  Bd5 {[%clk 0:01:27]} 23. Rff1 {[%clk 0:01:02]}  Qc2 {[%clk 0:01:22]} 24. Rf2 {[%clk 0:00:57]}  Qf5 {[%clk 0:01:15]} 25. Rff1 {[%clk 0:00:57]}  Qc2 {[%clk 0:01:00]} 26. Rf2 {[%clk 0:00:57]}  Qxe2 {[%clk 0:00:59]} 27. Rfxe2 {[%clk 0:00:57]}  Ng4 {[%clk 0:00:59]} 28. Bxd5 {[%clk 0:00:27]}  Nxd5 {[%clk 0:00:55]} 29. g3 {[%clk 0:00:27]}  Rc7 {[%clk 0:00:50]} 30. Nc4 {[%clk 0:00:27]}  Ngf6 {[%clk 0:00:37]} 31. Kg2 {[%clk 0:00:27]}  g6 {[%clk 0:00:29]} 32. Kf3 {[%clk 0:00:27]}  Ne8 {[%clk 0:00:29]} 33. Ba3 {[%clk 0:00:25]}  Ng7 {[%clk 0:00:25]} 34. h3 {[%clk 0:00:19]}  Nf5 {[%clk 0:00:25]} 35. Rd2 {[%clk 0:00:19]}  Nfe7 {[%clk 0:00:14]} 36. g4 {[%clk 0:00:19]}  hxg4+ {[%clk 0:00:10]} 37. hxg4 {[%clk 0:00:20]}  Nc6 {[%clk 0:00:10]} 38. Rh1 {[%clk 0:00:19]}  Nf6 {[%clk 0:00:09]} 39. Bb2 {[%clk 0:00:14]}  Rcd7 {[%clk 0:00:08]} 40. d5 {[%clk 0:00:12]}  exd5 {[%clk 0:00:01]} 41. Bxf6 {[%clk 0:00:12]} 1-0


[Site "https://www.chess.com"]

[Event "Titled Tuesday Blitz June 8 2021"]
[White "Vignesh, N R"]
[Black "Shipov, Sergei"]
[WhiteFideId "25012215"]
[BlackFideId "4113624"]
[WhiteElo "2401"]
[BlackElo "2771"]
[Result "1/2-1/2"]
[Round "10"]
[TimeControl "180+1"]
[Date "2021.06.08"]
[WhiteClock "0:00:18"]
[BlackClock "0:00:31"]

1. d4 {[%clk 0:03:00]}  d5 {[%clk 0:02:58]} 2. c4 {[%clk 0:03:00]}  e6 {[%clk 0:02:58]} 3. Nf3 {[%clk 0:03:00]}  c5 {[%clk 0:02:58]} 4. cxd5 {[%clk 0:02:59]}  exd5 {[%clk 0:02:59]} 5. Nc3 {[%clk 0:02:59]}  Nc6 {[%clk 0:02:59]} 6. e3 {[%clk 0:03:00]}  Nf6 {[%clk 0:02:56]} 7. Be2 {[%clk 0:03:00]}  Bd6 {[%clk 0:02:55]} 8. dxc5 {[%clk 0:02:59]}  Bxc5 {[%clk 0:02:56]} 9. O-O {[%clk 0:02:59]}  O-O {[%clk 0:02:55]} 10. b3 {[%clk 0:03:00]}  a6 {[%clk 0:02:49]} 11. Bb2 {[%clk 0:02:59]}  Qd6 {[%clk 0:02:44]} 12. Rc1 {[%clk 0:02:53]}  Bg4 {[%clk 0:02:42]} 13. h3 {[%clk 0:02:45]}  Bh5 {[%clk 0:02:35]} 14. Nd4 {[%clk 0:02:44]}  Bxd4 {[%clk 0:02:30]} 15. Bxh5 {[%clk 0:02:40]}  Be5 {[%clk 0:02:25]} 16. Bf3 {[%clk 0:02:35]}  Rad8 {[%clk 0:02:24]} 17. Qc2 {[%clk 0:02:12]}  d4 {[%clk 0:02:22]} 18. Ne4 {[%clk 0:02:04]}  Nxe4 {[%clk 0:02:12]} 19. Bxe4 {[%clk 0:01:48]}  dxe3 {[%clk 0:01:34]} 20. Bxe5 {[%clk 0:01:19]}  Qxe5 {[%clk 0:01:25]} 21. fxe3 {[%clk 0:01:18]}  g6 {[%clk 0:01:18]} 22. Bxc6 {[%clk 0:01:16]}  Qxe3+ {[%clk 0:01:07]} 23. Qf2 {[%clk 0:01:16]}  Qxf2+ {[%clk 0:01:06]} 24. Rxf2 {[%clk 0:01:17]}  bxc6 {[%clk 0:00:57]} 25. Rxc6 {[%clk 0:01:18]}  a5 {[%clk 0:00:57]} 26. Ra6 {[%clk 0:00:58]}  Rd5 {[%clk 0:00:54]} 27. Ra7 {[%clk 0:00:56]}  h5 {[%clk 0:00:51]} 28. Rf6 {[%clk 0:00:46]}  Kg7 {[%clk 0:00:46]} 29. Rfa6 {[%clk 0:00:40]}  Rc8 {[%clk 0:00:46]} 30. Rxa5 {[%clk 0:00:40]}  Rc1+ {[%clk 0:00:44]} 31. Kh2 {[%clk 0:00:39]}  Rd2 {[%clk 0:00:45]} 32. h4 {[%clk 0:00:32]}  Rcc2 {[%clk 0:00:43]} 33. Rg5 {[%clk 0:00:31]}  Rxa2 {[%clk 0:00:42]} 34. Rxa2 {[%clk 0:00:31]}  Rxa2 {[%clk 0:00:42]} 35. Rb5 {[%clk 0:00:30]}  Rb2 {[%clk 0:00:41]} 36. b4 {[%clk 0:00:30]}  Kf6 {[%clk 0:00:40]} 37. Kg3 {[%clk 0:00:29]}  Ke6 {[%clk 0:00:37]} 38. Kf3 {[%clk 0:00:30]}  f6 {[%clk 0:00:37]} 39. g3 {[%clk 0:00:29]}  Rb3+ {[%clk 0:00:37]} 40. Kf4 {[%clk 0:00:29]}  g5+ {[%clk 0:00:30]} 41. hxg5 {[%clk 0:00:25]}  fxg5+ {[%clk 0:00:31]} 42. Kxg5 {[%clk 0:00:19]}  Rxg3+ {[%clk 0:00:30]} 43. Kxh5 {[%clk 0:00:19]}  Kd6 {[%clk 0:00:30]} 44. Kh4 {[%clk 0:00:19]}  Rg1 {[%clk 0:00:30]} 45. Rg5 {[%clk 0:00:17]}  Rxg5 {[%clk 0:00:29]} 46. Kxg5 {[%clk 0:00:17]}  Kc6 {[%clk 0:00:30]} 47. Kf5 {[%clk 0:00:17]}  Kb5 {[%clk 0:00:31]} 48. Ke6 {[%clk 0:00:18]}  Kxb4 {[%clk 0:00:31]} 1/2-1/2


[Site "https://www.chess.com"]

[Event "Titled Tuesday Blitz June 8 2021"]
[White "Wagner, Dennis"]
[Black "Siva Mahadevan"]
[WhiteFideId "24650684"]
[BlackFideId "25043153"]
[WhiteElo "2355"]
[BlackElo "2203"]
[Result "0-1"]
[Round "10"]
[TimeControl "180+1"]
[Date "2021.06.08"]
[WhiteClock "0:00:20"]
[BlackClock "0:00:53"]

1. d4 {[%clk 0:03:00]}  Nf6 {[%clk 0:02:59]} 2. Nf3 {[%clk 0:03:01]}  g6 {[%clk 0:03:00]} 3. c4 {[%clk 0:03:01]}  Bg7 {[%clk 0:03:00]} 4. Nc3 {[%clk 0:03:02]}  O-O {[%clk 0:03:01]} 5. e4 {[%clk 0:03:02]}  d6 {[%clk 0:03:02]} 6. Be2 {[%clk 0:03:03]}  e5 {[%clk 0:03:02]} 7. O-O {[%clk 0:03:03]}  Nc6 {[%clk 0:03:02]} 8. d5 {[%clk 0:03:04]}  Ne7 {[%clk 0:03:02]} 9. b4 {[%clk 0:03:05]}  Nh5 {[%clk 0:03:03]} 10. Re1 {[%clk 0:03:04]}  f5 {[%clk 0:03:03]} 11. a4 {[%clk 0:03:03]}  Nf6 {[%clk 0:03:00]} 12. Nd2 {[%clk 0:02:56]}  a5 {[%clk 0:02:53]} 13. bxa5 {[%clk 0:02:51]}  c5 {[%clk 0:02:53]} 14. Ra3 {[%clk 0:02:43]}  f4 {[%clk 0:02:47]} 15. Nb3 {[%clk 0:02:33]}  h5 {[%clk 0:02:40]} 16. h3 {[%clk 0:02:22]}  Kh7 {[%clk 0:02:39]} 17. Bd2 {[%clk 0:02:21]}  Neg8 {[%clk 0:02:39]} 18. Bf3 {[%clk 0:02:17]}  Nh6 {[%clk 0:02:38]} 19. Nb5 {[%clk 0:02:16]}  Ra6 {[%clk 0:02:37]} 20. Nc1 {[%clk 0:02:14]}  Bd7 {[%clk 0:02:29]} 21. Nd3 {[%clk 0:02:12]}  Be8 {[%clk 0:02:29]} 22. Rb3 {[%clk 0:02:10]}  g5 {[%clk 0:02:27]} 23. g4 {[%clk 0:02:00]}  Bd7 {[%clk 0:01:55]} 24. Nxd6 {[%clk 0:01:49]}  Rxd6 {[%clk 0:01:54]} 25. Nxe5 {[%clk 0:01:45]}  hxg4 {[%clk 0:01:50]} 26. Nxd7 {[%clk 0:01:24]}  Nxd7 {[%clk 0:01:46]} 27. hxg4 {[%clk 0:01:11]}  Ne5 {[%clk 0:01:33]} 28. Rxb7 {[%clk 0:01:11]}  Rf7 {[%clk 0:01:19]} 29. Rb5 {[%clk 0:01:03]}  Qd7 {[%clk 0:01:13]} 30. Rxc5 {[%clk 0:00:58]}  Nhxg4 {[%clk 0:01:13]} 31. Kg2 {[%clk 0:00:54]}  Rh6 {[%clk 0:01:08]} 32. Rh1 {[%clk 0:00:54]}  Rf6 {[%clk 0:00:55]} 33. Bc3 {[%clk 0:00:21]}  Rxh1 {[%clk 0:00:53]} 34. Kxh1 {[%clk 0:00:20]}  Nxf2+ {[%clk 0:00:53]} 0-1


[Site "https://www.chess.com"]

[Event "Titled Tuesday Blitz June 8 2021"]
[White "Bachmann, Axel"]
[Black "Vignesh, N R"]
[WhiteFideId "3700488"]
[BlackFideId "25012215"]
[WhiteElo "2642"]
[BlackElo "2401"]
[Result "1-0"]
[Round "11"]
[TimeControl "180+1"]
[Date "2021.06.08"]
[WhiteClock "0:00:23"]
[BlackClock "0:00:02"]

1. d4 {[%clk 0:03:00]}  Nf6 {[%clk 0:02:59]} 2. c4 {[%clk 0:02:57]}  e6 {[%clk 0:02:59]} 3. Nc3 {[%clk 0:02:57]}  Bb4 {[%clk 0:02:59]} 4. e3 {[%clk 0:02:57]}  O-O {[%clk 0:02:59]} 5. Ne2 {[%clk 0:02:58]}  d5 {[%clk 0:02:57]} 6. a3 {[%clk 0:02:58]}  Bd6 {[%clk 0:02:57]} 7. Ng3 {[%clk 0:02:51]}  c6 {[%clk 0:02:56]} 8. Bd3 {[%clk 0:02:50]}  dxc4 {[%clk 0:02:47]} 9. Bxc4 {[%clk 0:02:51]}  b5 {[%clk 0:02:42]} 10. Bd3 {[%clk 0:02:47]}  Bb7 {[%clk 0:02:41]} 11. O-O {[%clk 0:02:46]}  Nbd7 {[%clk 0:02:40]} 12. Nge4 {[%clk 0:02:32]}  Be7 {[%clk 0:02:39]} 13. Bd2 {[%clk 0:02:20]}  c5 {[%clk 0:02:29]} 14. Nxf6+ {[%clk 0:02:13]}  Nxf6 {[%clk 0:02:30]} 15. Bxb5 {[%clk 0:02:06]}  cxd4 {[%clk 0:02:29]} 16. exd4 {[%clk 0:02:07]}  Qxd4 {[%clk 0:02:28]} 17. Be3 {[%clk 0:02:08]}  Qh4 {[%clk 0:02:25]} 18. h3 {[%clk 0:02:08]}  Rfd8 {[%clk 0:02:20]} 19. Qe2 {[%clk 0:02:08]}  Ne4 {[%clk 0:02:15]} 20. Nxe4 {[%clk 0:02:01]}  Qxe4 {[%clk 0:02:11]} 21. Qg4 {[%clk 0:02:02]}  Qxg4 {[%clk 0:02:08]} 22. hxg4 {[%clk 0:02:03]}  Bf6 {[%clk 0:02:09]} 23. Be2 {[%clk 0:01:55]}  Bd5 {[%clk 0:01:58]} 24. Rfb1 {[%clk 0:01:37]}  Be4 {[%clk 0:01:53]} 25. g5 {[%clk 0:01:36]}  Bxb1 {[%clk 0:01:38]} 26. gxf6 {[%clk 0:01:35]}  Be4 {[%clk 0:01:36]} 27. fxg7 {[%clk 0:01:29]}  Kxg7 {[%clk 0:01:36]} 28. b4 {[%clk 0:01:24]}  a6 {[%clk 0:01:20]} 29. Rc1 {[%clk 0:01:21]}  Rac8 {[%clk 0:01:13]} 30. Rxc8 {[%clk 0:01:18]}  Rxc8 {[%clk 0:01:14]} 31. Bxa6 {[%clk 0:01:18]}  Rc2 {[%clk 0:01:04]} 32. b5 {[%clk 0:01:13]}  Ra2 {[%clk 0:00:59]} 33. Bc5 {[%clk 0:01:13]}  Bd3 {[%clk 0:00:55]} 34. Bb4 {[%clk 0:01:10]}  f6 {[%clk 0:00:49]} 35. Bc8 {[%clk 0:01:02]}  e5 {[%clk 0:00:34]} 36. b6 {[%clk 0:01:00]}  Be4 {[%clk 0:00:27]} 37. b7 {[%clk 0:00:59]}  Bxb7 {[%clk 0:00:27]} 38. Bxb7 {[%clk 0:01:00]}  f5 {[%clk 0:00:26]} 39. Bd5 {[%clk 0:00:54]}  Ra1+ {[%clk 0:00:25]} 40. Kh2 {[%clk 0:00:54]}  Kf6 {[%clk 0:00:25]} 41. f3 {[%clk 0:00:55]}  h5 {[%clk 0:00:24]} 42. Bc6 {[%clk 0:00:49]}  Kg5 {[%clk 0:00:20]} 43. a4 {[%clk 0:00:44]}  e4 {[%clk 0:00:20]} 44. fxe4 {[%clk 0:00:43]}  fxe4 {[%clk 0:00:21]} 45. Bd2+ {[%clk 0:00:37]}  Kf5 {[%clk 0:00:20]} 46. a5 {[%clk 0:00:38]}  Ra2 {[%clk 0:00:18]} 47. Bb4 {[%clk 0:00:38]}  e3 {[%clk 0:00:17]} 48. Kg3 {[%clk 0:00:37]}  Rb2 {[%clk 0:00:10]} 49. a6 {[%clk 0:00:37]}  Rxb4 {[%clk 0:00:09]} 50. a7 {[%clk 0:00:37]}  Rg4+ {[%clk 0:00:09]} 51. Kf3 {[%clk 0:00:36]}  Rg8 {[%clk 0:00:10]} 52. Kxe3 {[%clk 0:00:34]}  h4 {[%clk 0:00:10]} 53. Kf3 {[%clk 0:00:27]}  Rg3+ {[%clk 0:00:09]} 54. Kf2 {[%clk 0:00:28]}  Ra3 {[%clk 0:00:09]} 55. a8=Q {[%clk 0:00:28]}  Rxa8 {[%clk 0:00:09]} 56. Bxa8 {[%clk 0:00:29]}  Kg4 {[%clk 0:00:09]} 57. Bf3+ {[%clk 0:00:27]}  Kf4 {[%clk 0:00:10]} 58. Be2 {[%clk 0:00:27]}  Ke4 {[%clk 0:00:10]} 59. Kg1 {[%clk 0:00:25]}  Ke3 {[%clk 0:00:06]} 60. Bh5 {[%clk 0:00:25]}  Kf4 {[%clk 0:00:03]} 61. Kh2 {[%clk 0:00:25]}  Kg5 {[%clk 0:00:02]} 62. Bd1 {[%clk 0:00:23]} 1-0


[Site "https://www.chess.com"]

[Event "Titled Tuesday Blitz June 8 2021"]
[White "Balakrishnan, Praveen"]
[Black "Indjic, Aleksandar"]
[WhiteFideId "2064871"]
[BlackFideId "911925"]
[WhiteElo "2237"]
[BlackElo "2643"]
[Result "0-1"]
[Round "11"]
[TimeControl "180+1"]
[Date "2021.06.08"]
[WhiteClock "0:02:00"]
[BlackClock "0:01:24"]

1. e4 {[%clk 0:03:00]}  c5 {[%clk 0:03:00]} 2. Nf3 {[%clk 0:02:58]}  Nc6 {[%clk 0:03:00]} 3. c3 {[%clk 0:02:52]}  d5 {[%clk 0:02:52]} 4. exd5 {[%clk 0:02:51]}  Qxd5 {[%clk 0:02:52]} 5. d4 {[%clk 0:02:50]}  Bf5 {[%clk 0:02:53]} 6. Be3 {[%clk 0:02:49]}  cxd4 {[%clk 0:02:40]} 7. Nxd4 {[%clk 0:02:50]}  Nf6 {[%clk 0:02:17]} 8. Nxf5 {[%clk 0:02:48]}  Qxf5 {[%clk 0:02:18]} 9. Nd2 {[%clk 0:02:48]}  e6 {[%clk 0:02:17]} 10. Qb3 {[%clk 0:02:42]}  O-O-O {[%clk 0:02:16]} 11. Bb5 {[%clk 0:02:42]}  Qd5 {[%clk 0:02:15]} 12. Qxd5 {[%clk 0:02:32]}  Rxd5 {[%clk 0:02:15]} 13. Bxc6 {[%clk 0:02:24]}  bxc6 {[%clk 0:02:16]} 14. Bxa7 {[%clk 0:02:24]}  c5 {[%clk 0:02:15]} 15. Bb6 {[%clk 0:02:21]}  Kb7 {[%clk 0:02:14]} 16. Ba5 {[%clk 0:02:19]}  Ka6 {[%clk 0:02:08]} 17. Bc7 {[%clk 0:02:17]}  Be7 {[%clk 0:01:34]} 18. O-O-O {[%clk 0:02:06]}  Ra8 {[%clk 0:01:25]} 19. Bd6 {[%clk 0:02:00]}  Bxd6 {[%clk 0:01:24]} 0-1


[Site "https://www.chess.com"]

[Event "Titled Tuesday Blitz June 8 2021"]
[White "Cunjalo, Faris"]
[Black "Abdusattorov, Nodirbek"]
[WhiteFideId "14410710"]
[BlackFideId "14204118"]
[WhiteElo "2234"]
[BlackElo "2662"]
[Result "1/2-1/2"]
[Round "11"]
[TimeControl "180+1"]
[Date "2021.06.08"]
[WhiteClock "0:00:13"]
[BlackClock "0:00:02"]

1. c4 {[%clk 0:03:00]}  c5 {[%clk 0:02:58]} 2. Nf3 {[%clk 0:02:59]}  Nf6 {[%clk 0:02:57]} 3. Nc3 {[%clk 0:02:58]}  Nc6 {[%clk 0:02:57]} 4. e3 {[%clk 0:02:55]}  e6 {[%clk 0:02:51]} 5. d4 {[%clk 0:02:52]}  cxd4 {[%clk 0:02:51]} 6. exd4 {[%clk 0:02:52]}  d5 {[%clk 0:02:51]} 7. cxd5 {[%clk 0:02:40]}  Nxd5 {[%clk 0:02:49]} 8. Bd3 {[%clk 0:02:38]}  Bb4 {[%clk 0:02:48]} 9. Bd2 {[%clk 0:02:19]}  O-O {[%clk 0:02:48]} 10. O-O {[%clk 0:02:18]}  Be7 {[%clk 0:02:49]} 11. a3 {[%clk 0:02:11]}  Nf6 {[%clk 0:02:49]} 12. Bg5 {[%clk 0:02:06]}  h6 {[%clk 0:02:49]} 13. Bh4 {[%clk 0:02:02]}  Nh5 {[%clk 0:02:49]} 14. Bxe7 {[%clk 0:02:01]}  Nxe7 {[%clk 0:02:50]} 15. Ne5 {[%clk 0:01:53]}  Nf6 {[%clk 0:02:49]} 16. Re1 {[%clk 0:01:51]}  b6 {[%clk 0:02:45]} 17. Re3 {[%clk 0:01:39]}  Bb7 {[%clk 0:02:42]} 18. Rg3 {[%clk 0:01:37]}  Kh8 {[%clk 0:02:33]} 19. Bc2 {[%clk 0:01:32]}  Rc8 {[%clk 0:02:25]} 20. Qd2 {[%clk 0:01:26]}  Ned5 {[%clk 0:02:15]} 21. Re1 {[%clk 0:01:22]}  Nh5 {[%clk 0:01:58]} 22. Qd3 {[%clk 0:01:08]}  Ndf6 {[%clk 0:01:53]} 23. Rg4 {[%clk 0:01:00]}  Qc7 {[%clk 0:01:27]} 24. Rh4 {[%clk 0:00:57]}  g6 {[%clk 0:01:21]} 25. Qe3 {[%clk 0:00:50]}  Kg7 {[%clk 0:01:16]} 26. g4 {[%clk 0:00:39]}  Nd5 {[%clk 0:01:02]} 27. Nxd5 {[%clk 0:00:38]}  Qxc2 {[%clk 0:01:02]} 28. gxh5 {[%clk 0:00:34]}  g5 {[%clk 0:00:57]} 29. Nb4 {[%clk 0:00:30]}  Qf5 {[%clk 0:00:57]} 30. Rh3 {[%clk 0:00:22]}  a5 {[%clk 0:00:49]} 31. Nbd3 {[%clk 0:00:22]}  f6 {[%clk 0:00:49]} 32. Ng6 {[%clk 0:00:22]}  Rfe8 {[%clk 0:00:41]} 33. Rg3 {[%clk 0:00:22]}  Rcd8 {[%clk 0:00:40]} 34. h4 {[%clk 0:00:19]}  Qd5 {[%clk 0:00:39]} 35. f3 {[%clk 0:00:19]}  Qxd4 {[%clk 0:00:39]} 36. Qxd4 {[%clk 0:00:17]}  Rxd4 {[%clk 0:00:40]} 37. Nf2 {[%clk 0:00:14]}  Kf7 {[%clk 0:00:36]} 38. Ng4 {[%clk 0:00:11]}  Kg7 {[%clk 0:00:33]} 39. Ne3 {[%clk 0:00:08]}  Rc8 {[%clk 0:00:28]} 40. hxg5 {[%clk 0:00:07]}  hxg5 {[%clk 0:00:28]} 41. f4 {[%clk 0:00:08]}  Kh6 {[%clk 0:00:16]} 42. fxg5+ {[%clk 0:00:07]}  fxg5 {[%clk 0:00:17]} 43. Ng4+ {[%clk 0:00:06]}  Kxh5 {[%clk 0:00:11]} 44. N6e5 {[%clk 0:00:07]}  Kh4 {[%clk 0:00:12]} 45. Rge3 {[%clk 0:00:04]}  Rc2 {[%clk 0:00:09]} 46. R3e2 {[%clk 0:00:04]}  Rxe2 {[%clk 0:00:09]} 47. Rxe2 {[%clk 0:00:05]}  Kg3 {[%clk 0:00:06]} 48. Re3+ {[%clk 0:00:04]}  Kf4 {[%clk 0:00:07]} 49. Rb3 {[%clk 0:00:03]}  Rd2 {[%clk 0:00:05]} 50. Rxb6 {[%clk 0:00:03]}  Bd5 {[%clk 0:00:04]} 51. Kf1 {[%clk 0:00:03]}  Rc2 {[%clk 0:00:03]} 52. Ke1 {[%clk 0:00:02]}  Rg2 {[%clk 0:00:02]} 53. Rb5 {[%clk 0:00:02]}  Be4 {[%clk 0:00:02]} 54. Rxa5 {[%clk 0:00:02]}  Rxb2 {[%clk 0:00:02]} 55. Ra4 {[%clk 0:00:02]}  Rb1+ {[%clk 0:00:03]} 56. Kd2 {[%clk 0:00:02]}  Kf5 {[%clk 0:00:01]} 57. Rb4 {[%clk 0:00:01]}  Ra1 {[%clk 0:00:01]} 58. a4 {[%clk 0:00:02]}  Ra2+ {[%clk 0:00:02]} 59. Kc3 {[%clk 0:00:02]}  Bd5 {[%clk 0:00:02]} 60. Rb5 {[%clk 0:00:01]}  Rxa4 {[%clk 0:00:02]} 61. Rb4 {[%clk 0:00:02]}  Ra3+ {[%clk 0:00:02]} 62. Kd4 {[%clk 0:00:03]}  Rg3 {[%clk 0:00:03]} 63. Kc5 {[%clk 0:00:03]}  Rg2 {[%clk 0:00:02]} 64. Kd6 {[%clk 0:00:04]}  Ra2 {[%clk 0:00:02]} 65. Nh6+ {[%clk 0:00:04]}  Kf6 {[%clk 0:00:02]} 66. Nhg4+ {[%clk 0:00:04]}  Kf5 {[%clk 0:00:02]} 67. Rb8 {[%clk 0:00:05]}  Ra6+ {[%clk 0:00:02]} 68. Ke7 {[%clk 0:00:05]}  Kf4 {[%clk 0:00:02]} 69. Rf8+ {[%clk 0:00:06]}  Kg3 {[%clk 0:00:03]} 70. Rg8 {[%clk 0:00:06]}  Kf4 {[%clk 0:00:03]} 71. Kf6 {[%clk 0:00:06]}  Be4 {[%clk 0:00:02]} 72. Rxg5 {[%clk 0:00:06]}  Bf5 {[%clk 0:00:02]} 73. Rg8 {[%clk 0:00:06]}  Ra5 {[%clk 0:00:02]} 74. Rg7 {[%clk 0:00:04]}  Ra8 {[%clk 0:00:02]} 75. Nh6 {[%clk 0:00:04]}  Rf8+ {[%clk 0:00:02]} 76. Nhf7 {[%clk 0:00:04]}  Rc8 {[%clk 0:00:01]} 77. Rg1 {[%clk 0:00:05]}  Ke3 {[%clk 0:00:01]} 78. Re1+ {[%clk 0:00:05]}  Kf2 {[%clk 0:00:01]} 79. Ra1 {[%clk 0:00:05]}  Rc3 {[%clk 0:00:02]} 80. Nd6 {[%clk 0:00:06]}  Ke3 {[%clk 0:00:02]} 81. Re1+ {[%clk 0:00:05]}  Kf2 {[%clk 0:00:02]} 82. Ra1 {[%clk 0:00:05]}  Ke3 {[%clk 0:00:02]} 83. Nxf5+ {[%clk 0:00:05]}  exf5 {[%clk 0:00:02]} 84. Kxf5 {[%clk 0:00:06]}  Rc5 {[%clk 0:00:03]} 85. Ra3+ {[%clk 0:00:06]}  Kd4 {[%clk 0:00:03]} 86. Ra4+ {[%clk 0:00:06]}  Ke3 {[%clk 0:00:03]} 87. Rh4 {[%clk 0:00:05]}  Ke2 {[%clk 0:00:03]} 88. Rh2+ {[%clk 0:00:05]}  Ke3 {[%clk 0:00:03]} 89. Rh3+ {[%clk 0:00:06]}  Kf2 {[%clk 0:00:03]} 90. Ke4 {[%clk 0:00:05]}  Kg2 {[%clk 0:00:03]} 91. Ra3 {[%clk 0:00:06]}  Rb5 {[%clk 0:00:03]} 92. Nd3 {[%clk 0:00:05]}  Rg5 {[%clk 0:00:03]} 93. Nf4+ {[%clk 0:00:05]}  Kh2 {[%clk 0:00:02]} 94. Kf3 {[%clk 0:00:05]}  Rg3+ {[%clk 0:00:02]} 95. Ke4 {[%clk 0:00:04]}  Rxa3 {[%clk 0:00:02]} 96. Nd5 {[%clk 0:00:05]}  Kg3 {[%clk 0:00:03]} 97. Kd4 {[%clk 0:00:04]}  Ra4+ {[%clk 0:00:03]} 98. Ke5 {[%clk 0:00:04]}  Kf3 {[%clk 0:00:04]} 99. Nf6 {[%clk 0:00:05]}  Ra5+ {[%clk 0:00:05]} 100. Kd4 {[%clk 0:00:05]}  Kf4 {[%clk 0:00:05]} 101. Nd5+ {[%clk 0:00:06]}  Kf5 {[%clk 0:00:05]} 102. Ne3+ {[%clk 0:00:06]}  Ke6 {[%clk 0:00:06]} 103. Nc4 {[%clk 0:00:07]}  Rd5+ {[%clk 0:00:06]} 104. Ke4 {[%clk 0:00:07]}  Rh5 {[%clk 0:00:06]} 105. Kd4 {[%clk 0:00:07]}  Rh4+ {[%clk 0:00:06]} 106. Kc5 {[%clk 0:00:08]}  Re4 {[%clk 0:00:07]} 107. Nd2 {[%clk 0:00:07]}  Re5+ {[%clk 0:00:06]} 108. Kc4 {[%clk 0:00:08]}  Ra5 {[%clk 0:00:04]} 109. Ne4 {[%clk 0:00:07]}  Ra4+ {[%clk 0:00:03]} 110. Kd3 {[%clk 0:00:08]}  Ke5 {[%clk 0:00:04]} 111. Nc3 {[%clk 0:00:08]}  Rb4 {[%clk 0:00:04]} 112. Ne2 {[%clk 0:00:08]}  Re4 {[%clk 0:00:04]} 113. Nc3 {[%clk 0:00:08]}  Rd4+ {[%clk 0:00:05]} 114. Ke3 {[%clk 0:00:09]}  Rd6 {[%clk 0:00:04]} 115. Ne2 {[%clk 0:00:08]}  Rh6 {[%clk 0:00:05]} 116. Kd3 {[%clk 0:00:09]}  Rh3+ {[%clk 0:00:05]} 117. Kc4 {[%clk 0:00:09]}  Rf3 {[%clk 0:00:04]} 118. Nc3 {[%clk 0:00:09]}  Re3 {[%clk 0:00:05]} 119. Nb5 {[%clk 0:00:10]}  Re2 {[%clk 0:00:04]} 120. Nc3 {[%clk 0:00:10]}  Re1 {[%clk 0:00:04]} 121. Kd3 {[%clk 0:00:10]}  Rc1 {[%clk 0:00:05]} 122. Kc4 {[%clk 0:00:11]}  Ra1 {[%clk 0:00:03]} 123. Kd3 {[%clk 0:00:11]}  Ra6 {[%clk 0:00:04]} 124. Kc4 {[%clk 0:00:12]}  Rd6 {[%clk 0:00:04]} 125. Nb5 {[%clk 0:00:12]}  Rc6+ {[%clk 0:00:04]} 126. Kd3 {[%clk 0:00:12]}  Rc5 {[%clk 0:00:03]} 127. Nc3 {[%clk 0:00:12]}  Rc6 {[%clk 0:00:01]} 128. Nb5 {[%clk 0:00:13]}  Rc5 {[%clk 0:00:02]} 129. Nc3 {[%clk 0:00:13]}  Rxc3+ {[%clk 0:00:02]} 130. Kxc3 {[%clk 0:00:13]} 1/2-1/2


[Site "https://www.chess.com"]